bitfinex/quotes_BTCUSD_20251124
["timestamp","ask_amount","ask_price","bid_price","bid_amount"]
[1763949127828,0.000118,87020.0,87012.0,0.01]
[1763949128032,0.000118,87020.0,87019.0,0.03515]
[1763949128530,0.000118,87020.0,87019.0,0.06462]
[1763949129345,0.0002,87030.0,87019.0,0.06462]
[1763949129529,0.01,87040.0,87029.0,0.02011]
[1763949129736,0.01,87040.0,87039.0,0.06437867]
[1763949129938,0.323,87049.0,87039.0,0.06437867]
[1763949130135,0.32311793,87049.0,87040.0,0.02947]
[1763949130377,0.32311793,87049.0,87048.0,0.02011]
[1763949130777,0.32311793,87049.0,87048.0,0.04958]
[1763949131093,0.00011793,87049.0,87048.0,0.04958]
[1763949131268,0.02312375,87049.0,87048.0,0.02011]
[1763949131673,0.02312375,87049.0,87040.0,0.02947]
[1763949131876,0.34612375,87049.0,87040.0,0.02947]
[1763949132207,0.322321,87049.0,87040.0,0.02947]
[1763949133193,0.02300582,87048.0,87040.0,0.02947]
[1763949133593,0.02300582,87048.0,87047.0,0.02011]
[1763949133810,0.322321,87049.0,87047.0,0.02011]
[1763949134018,0.0015114,87048.0,87039.0,0.01504]
[1763949134208,0.322321,87049.0,87048.0,0.02011]
[1763949134546,0.0001,87050.0,87048.0,0.02011]
[1763949134796,0.0001,87050.0,87049.0,0.04958]
[1763949134984,0.0001,87050.0,87049.0,0.04969793]
[1763949136584,0.0001,87050.0,87049.0,0.05969793]
[1763949136804,0.73098442,87070.0,87051.0,0.01]
[1763949137002,0.01892747,87075.0,87049.0,0.04969793]
[1763949137003,0.01892747,87075.0,87069.0,0.03515]
[1763949137217,0.11811186,87074.0,87069.0,0.01504]
[1763949137555,0.02999999,87070.0,87064.0,0.01504]
[1763949137979,0.323,87066.0,87064.0,0.01504]
[1763949138191,0.323,87056.0,87049.0,0.00011793]
[1763949138398,0.02999999,87060.0,87050.0,0.02947]
[1763949138599,1.02398443,87060.0,87059.0,0.03515]
[1763949138799,0.323,87060.0,87059.0,0.03515]
[1763949139001,0.323,87060.0,87059.0,0.06462]
[1763949139419,0.323,87060.0,87059.0,0.01504]
[1763949139627,0.01999999,87060.0,87053.0,0.01504]
[1763949139827,0.11811186,87058.0,87053.0,0.01504]
[1763949140023,0.02300582,87057.0,87053.0,0.01504]
[1763949140273,0.00170021,87054.0,87053.0,0.01504]
[1763949140486,0.00170021,87054.0,87049.0,0.00011793]
[1763949140487,0.01148725,87053.0,87049.0,0.00011793]
[1763949140704,0.24121599,87059.0,87049.0,0.00011793]
[1763949140705,0.02300582,87052.0,87049.0,0.01515793]
[1763949140907,0.72399025,87059.0,87051.0,0.02011]
[1763949141109,0.02300582,87058.0,87051.0,0.02011]
[1763949141315,0.00163728,87052.0,87051.0,0.02011]
[1763949141777,0.00163728,87052.0,87051.0,0.04958]
[1763949142610,0.00163728,87052.0,87051.0,0.05958]
[1763949144782,2.0,87051.0,87005.0,0.01504]
[1763949144985,0.323,87005.0,86999.0,0.01504]
[1763949145204,0.2298746,87004.0,86995.0,0.01504]
[1763949145447,0.22988958,86999.0,86995.0,0.01504]
[1763949145653,0.02999999,86990.0,86975.0,0.01504]
[1763949145856,0.323,86980.0,86975.0,0.01504]
[1763949146058,0.323,86984.0,86975.0,0.01504]
[1763949146228,0.323,86984.0,86975.0,0.01543341]
[1763949147386,0.34195115,86984.0,86975.0,0.01543341]
[1763949147806,0.323,86984.0,86975.0,0.01543341]
[1763949148019,0.323,86984.0,86983.0,0.02011]
[1763949148214,0.01827742,86989.0,86983.0,0.02011]
[1763949148412,0.02999999,86990.0,86984.0,0.02011]
[1763949148637,0.04850223,86990.0,86984.0,0.02011]
[1763949149048,0.04850223,86990.0,86975.0,0.01543341]
[1763949149049,0.22993054,86983.0,86975.0,0.01543341]
[1763949149379,0.47634802,86985.0,86975.0,0.01543341]
[1763949149812,0.47634802,86985.0,86984.0,0.02011]
[1763949150009,0.323,86985.0,86984.0,0.02011]
[1763949150450,0.323,86985.0,86984.0,0.03515]
[1763949150683,0.323,86985.0,86984.0,0.01504]
[1763949150838,0.55292947,86984.0,86975.0,0.01543341]
[1763949151197,0.323,86984.0,86975.0,0.01543341]
[1763949151822,0.323,86984.0,86983.0,0.01504]
[1763949152404,0.04850223,86990.0,86983.0,0.01504]
[1763949152609,0.03203328,86989.0,86983.0,0.01504]
[1763949152829,0.04850223,86990.0,86983.0,0.01461683]
[1763949153051,0.03203317,86989.0,86983.0,0.01461683]
[1763949153245,0.04850223,86990.0,86983.0,0.01461683]
[1763949153448,0.03203337,86989.0,86983.0,0.01461683]
[1763949153669,0.22991412,86989.0,86983.0,0.01461683]
[1763949153952,0.04850223,86990.0,86983.0,0.01461683]
[1763949154268,0.03203337,86989.0,86983.0,0.01461683]
[1763949154496,0.04850223,86990.0,86983.0,0.04226683]
[1763949154909,0.02850224,86990.0,86989.0,0.01977]
[1763949155116,0.01850224,86990.0,86989.0,0.01977]
[1763949155339,0.98269603,87000.0,86989.0,0.04742]
[1763949155548,0.04351587,86999.0,86989.0,0.01977]
[1763949155758,0.02999999,86990.0,86983.0,0.01461683]
[1763949156731,0.01149597,86987.0,86975.0,0.01543341]
[1763949156996,0.323,86985.0,86978.0,0.01398]
[1763949157376,0.323,86985.0,86984.0,0.01977]
[1763949157554,0.323,86983.0,86978.0,0.01398]
[1763949158773,0.323,86987.0,86982.0,0.01977]
[1763949158974,0.02300582,86986.0,86979.0,0.02765]
[1763949159176,0.323,86987.0,86986.0,0.01977]
[1763949159356,0.323,86987.0,86979.0,0.02765]
[1763949159560,0.323,86987.0,86978.0,0.01398]
[1763949159760,0.323,86985.0,86978.0,0.01398]
[1763949160780,0.17982413,86985.0,86978.0,0.01398]
[1763949161361,0.02300582,86984.0,86978.0,0.01398]
[1763949161787,0.02300582,86985.0,86983.0,0.01977]
[1763949161999,0.02300582,86988.0,86984.0,0.01977]
[1763949162161,0.02300582,86988.0,86984.0,0.02765]
[1763949162367,0.02300582,86988.0,86987.0,0.01977]
[1763949162564,0.11811186,86994.0,86987.0,0.01977]
[1763949162769,0.02300582,86993.0,86988.0,0.01977]
[1763949162974,0.02300582,86993.0,86984.0,0.02765]
[1763949163178,0.01999999,86990.0,86978.0,0.01398]
[1763949163389,0.02300582,86989.0,86978.0,0.04163]
[1763949164020,0.22991941,86987.0,86975.0,0.01543341]
[1763949164226,0.35750192,86986.0,86975.0,0.01543341]
[1763949164460,0.56442041,86986.0,86975.0,0.01543341]
[1763949164662,0.323,86986.0,86975.0,0.01543341]
[1763949164864,0.323,86984.0,86976.0,0.02896]
[1763949165086,0.02300582,86983.0,86976.0,0.02896]
[1763949165581,0.02300582,86983.0,86975.0,0.01543341]
[1763949165780,0.323,86978.0,86975.0,0.00039341]
[1763949165989,0.02300582,86977.0,86975.0,0.00039341]
[1763949166598,0.02300582,86977.0,86976.0,0.0479]
[1763949166794,0.47634802,86985.0,86976.0,0.0479]
[1763949167005,0.11811186,86979.0,86975.0,0.00039341]
[1763949167212,0.02300582,86978.0,86975.0,0.00039341]
[1763949167995,0.02300582,86978.0,86977.0,0.03255]
[1763949168201,0.02192718,86984.0,86977.0,0.03255]
[1763949168401,0.02137807,86983.0,86978.0,0.02896]
[1763949168630,0.47634802,86985.0,86978.0,0.02896]
[1763949168838,0.02300582,86984.0,86978.0,0.02896]
[1763949169352,0.02139646,86983.0,86978.0,0.02896]
[1763949169558,0.04440228,86982.0,86978.0,0.02896]
[1763949169763,0.02300582,86982.0,86978.0,0.02896]
[1763949169962,0.02300582,86984.0,86977.0,0.01361]
[1763949170120,0.0213968,86983.0,86979.0,0.02896]
[1763949170340,0.04440262,86982.0,86979.0,0.02896]
[1763949170541,0.0213968,86981.0,86977.0,0.01361]
[1763949170734,0.0213968,86981.0,86978.0,0.02896]
[1763949170926,0.0213968,86981.0,86977.0,0.01361]
[1763949170927,0.04440262,86980.0,86977.0,0.01361]
[1763949171154,0.0213968,86979.0,86977.0,0.01361]
[1763949171427,0.02300582,86978.0,86977.0,0.01361]
[1763949171650,0.04440262,86978.0,86977.0,0.01361]
[1763949171854,0.0213968,86978.0,86977.0,0.06151]
[1763949172054,0.47634802,86987.0,86977.0,0.06151]
[1763949172255,0.0213968,86986.0,86978.0,0.02896]
[1763949172430,0.0213968,86985.0,86978.0,0.02896]
[1763949172634,0.0213968,86984.0,86978.0,0.02896]
[1763949172948,0.0213968,86983.0,86978.0,0.02896]
[1763949173146,0.47634802,86987.0,86978.0,0.02896]
[1763949173147,0.0213968,86982.0,86978.0,0.02896]
[1763949173420,0.47634802,86987.0,86986.0,0.01894]
[1763949173620,0.02149518,86987.0,86986.0,0.01894]
[1763949173875,0.02149518,86987.0,86986.0,0.0479]
[1763949174403,0.03228207,86987.0,86986.0,0.0479]
[1763949175847,0.02149518,86987.0,86986.0,0.0479]
[1763949176459,0.47634802,86996.0,86986.0,0.0479]
[1763949176684,0.01,87000.0,86995.0,0.03255]
[1763949176873,0.00025202,87008.0,86999.0,0.01894]
[1763949177084,0.00025202,87008.0,87007.0,0.01894]
[1763949177286,0.01956096,87008.0,87007.0,0.0479]
[1763949177457,0.03033983,87008.0,87007.0,0.01894]
[1763949177654,0.03033983,87008.0,87007.0,0.0479]
[1763949178211,0.03033983,87008.0,87007.0,0.048018]
[1763949178438,0.00025202,87008.0,87007.0,0.048018]
[1763949178866,0.01,87020.0,87007.0,0.048018]
[1763949178867,0.02999999,87020.0,87007.0,0.048018]
[1763949179030,0.48634802,87020.0,87019.0,0.03255]
[1763949179230,0.01,87020.0,87019.0,0.06151]
[1763949179435,0.01949834,87026.0,87019.0,0.06151]
[1763949179652,0.02300582,87025.0,87019.0,0.06151]
[1763949179852,0.47634802,87029.0,87019.0,0.06151]
[1763949179853,0.02300582,87028.0,87019.0,0.03255]
[1763949180104,0.02300582,87028.0,87020.0,0.02896]
[1763949180671,0.02300582,87028.0,87008.0,0.01361]
[1763949180672,0.01999999,87020.0,87014.0,0.01361]
[1763949180894,0.02300582,87019.0,87014.0,0.01361]
[1763949181590,0.02300582,87019.0,87008.0,0.01361]
[1763949181728,0.47634802,87018.0,87008.0,0.01361]
[1763949181932,0.02300582,87017.0,87008.0,0.01361]
[1763949182537,0.02300582,87017.0,87009.0,0.02896]
[1763949182963,0.02300582,87017.0,87008.0,0.01361]
[1763949183379,0.02300582,87017.0,87016.0,0.01894]
[1763949183578,0.02999999,87020.0,87016.0,0.04858]
[1763949183579,0.01999999,87020.0,87016.0,0.04858]
[1763949183794,0.02300582,87019.0,87017.0,0.04787]
[1763949183988,0.02300582,87024.0,87018.0,0.01823]
[1763949184192,0.02300582,87024.0,87018.0,0.04787]
[1763949184824,0.00037795,87020.0,87018.0,0.04787]
[1763949185023,0.02300582,87024.0,87018.0,0.04787]
[1763949185272,0.02300582,87024.0,87019.0,0.01823]
[1763949185418,0.47634802,87026.0,87023.0,0.01823]
[1763949185619,0.0191594,87028.0,87025.0,0.01823]
[1763949185852,0.48634802,87040.0,87019.0,0.02964]
[1763949185853,0.02300582,87032.0,87027.0,0.01823]
[1763949186060,0.02300582,87038.0,87032.0,0.01823]
[1763949187101,0.02300582,87038.0,87037.0,0.01823]
[1763949187253,0.01887413,87039.0,87037.0,0.01823]
[1763949187459,0.02300582,87046.0,87038.0,0.04787]
[1763949187644,0.47634802,87047.0,87046.0,0.01436]
[1763949187848,0.01,87050.0,87046.0,0.06223]
[1763949188444,0.02300582,87049.0,87046.0,0.06223]
[1763949188631,0.02300582,87049.0,87047.0,0.02964]
[1763949188830,0.01931056,87050.0,87048.0,0.01823]
[1763949189041,0.02999999,87060.0,87049.0,0.01823]
[1763949189183,0.48634802,87060.0,87059.0,0.03259]
[1763949189390,0.47634802,87069.0,87059.0,0.03259]
[1763949189601,0.0219995,87068.0,87060.0,0.02964]
[1763949190000,0.47634802,87069.0,87067.0,0.01823]
[1763949190205,0.323,87068.0,87067.0,0.01823]
[1763949190406,0.323,87068.0,87060.0,0.02964]
[1763949190612,0.02198212,87067.0,87060.0,0.02964]
[1763949191420,0.01892926,87068.0,87066.0,0.01823]
[1763949191724,0.323,87069.0,87067.0,0.01823]
[1763949191929,0.323,87069.0,87068.0,0.04787]
[1763949192125,0.322664,87069.0,87068.0,0.04787]
[1763949192357,0.01933649,87069.0,87068.0,0.04787]
[1763949192554,0.14111768,87076.0,87068.0,0.01823]
[1763949192733,0.14111768,87076.0,87046.0,0.01436]
[1763949192734,0.02999999,87060.0,87046.0,0.01436]
[1763949192937,0.47634802,87056.0,87046.0,0.01436]
[1763949193133,0.02300582,87055.0,87046.0,0.01436]
[1763949193542,0.01803139,87053.0,87046.0,0.01436]
[1763949193742,0.02300582,87052.0,87046.0,0.01436]
[1763949195776,0.02999999,87040.0,87031.0,0.01436]
[1763949196030,0.02300582,87039.0,87031.0,0.01436]
[1763949196231,0.2642777,87039.0,87031.0,0.01436]
[1763949196404,0.0114891,87039.0,87031.0,0.01436]
[1763949196547,0.02300582,87039.0,87031.0,0.01436]
[1763949196954,0.02300582,87039.0,87031.0,0.01447786]
[1763949197208,0.11811186,87033.0,87031.0,0.00011786]
[1763949197411,0.22980053,87032.0,87031.0,0.00011786]
[1763949198360,0.11811186,87033.0,87031.0,0.00011786]
[1763949198988,0.34790977,87033.0,87031.0,0.00011786]
[1763949199437,0.11811186,87033.0,87031.0,0.00011786]
[1763949200627,2.0,87039.0,87032.0,0.04787]
[1763949200929,0.01,87040.0,87032.0,0.01823]
[1763949201253,0.0224475,87039.0,87032.0,0.01823]
[1763949201410,0.11811186,87033.0,87031.0,0.00011786]
[1763949201813,2.0,87039.0,87031.0,0.00011786]
[1763949202221,0.11811186,87033.0,87031.0,0.00011786]
[1763949204024,0.02999999,87040.0,87032.0,0.01823]
[1763949204207,0.02300582,87039.0,87038.0,0.01823]
[1763949204550,0.05062649,87040.0,87031.0,0.02975786]
[1763949204873,0.0007558,87032.0,87031.0,0.02975786]
[1763949205266,0.0007558,87032.0,87031.0,0.04798786]
[1763949209090,0.0007558,87032.0,87031.0,0.01834786]
[1763949209393,0.69909045,87041.0,87031.0,0.01834786]
[1763949209731,0.11811186,87040.0,87031.0,0.01834786]
[1763949211182,0.08442079,87060.0,87039.0,0.01823]
[1763949211404,0.08442079,87060.0,87032.0,0.02964]
[1763949211405,0.69909045,87049.0,87047.0,0.01436]
[1763949211539,2.0,87056.0,87047.0,0.01436]
[1763949211737,0.69909045,87057.0,87048.0,0.01823]
[1763949211955,0.02147846,87056.0,87048.0,0.01823]
[1763949212282,0.69909045,87057.0,87056.0,0.01823]
[1763949212656,0.69909045,87057.0,87056.0,0.04787]
[1763949213026,0.22973149,87059.0,87047.0,0.01436]
[1763949213225,0.69909045,87057.0,87047.0,0.01436]
[1763949213676,0.01148685,87056.0,87047.0,0.01436]
[1763949213834,0.01148685,87056.0,87040.0,0.01436]
[1763949213835,0.01148765,87050.0,87040.0,0.01436]
[1763949214039,0.01148765,87050.0,87033.0,0.01397]
[1763949214040,0.11811186,87047.0,87033.0,0.01397]
[1763949214359,0.11811186,87061.0,87049.0,0.01397]
[1763949214360,2.0,87057.0,87049.0,0.01397]
[1763949214554,0.12959805,87061.0,87049.0,0.03221]
[1763949214555,2.0,87055.0,87049.0,0.03221]
[1763949214883,0.0214933,87054.0,87049.0,0.03221]
[1763949215086,0.01148765,87050.0,87043.0,0.01397]
[1763949215267,0.11811186,87046.0,87043.0,0.01397]
[1763949216615,0.69909045,87053.0,87043.0,0.01397]
[1763949216915,0.11811186,87047.0,87043.0,0.01397]
[1763949217413,0.00053518,87049.0,87046.0,0.01824]
[1763949217619,0.69909045,87053.0,87048.0,0.01824]
[1763949217817,0.02149886,87052.0,87048.0,0.01824]
[1763949217960,0.02149886,87051.0,87048.0,0.01824]
[1763949218166,0.69909045,87053.0,87048.0,0.01824]
[1763949218520,0.0214989,87052.0,87043.0,0.01397]
[1763949218781,0.25125021,87051.0,87043.0,0.01397]
[1763949218930,0.11811186,87047.0,87043.0,0.01397]
[1763949219128,0.22976357,87046.0,87033.0,0.01397]
[1763949219327,0.35936335,87047.0,87033.0,0.01397]
[1763949219539,0.11811186,87047.0,87033.0,0.01397]
[1763949219746,0.34787438,87047.0,87033.0,0.01397]
[1763949220203,0.69909045,87043.0,87033.0,0.01397]
[1763949220407,0.22978507,87038.0,87031.0,0.00011786]
[1763949220609,0.01148883,87041.0,87031.0,0.00011786]
[1763949220610,0.22977894,87041.0,87031.0,0.00011786]
[1763949220810,0.22977413,87042.0,87031.0,0.00011786]
[1763949221018,0.22979096,87036.0,87031.0,0.00011786]
[1763949221223,0.11811186,87033.0,87031.0,0.00011786]
[1763949222136,0.22980053,87032.0,87031.0,0.00011786]
[1763949222355,0.25131828,87032.0,87031.0,0.00011786]
[1763949222546,0.02151775,87032.0,87031.0,0.00011786]
[1763949223745,0.02151775,87032.0,87031.0,0.06096786]
[1763949223944,2.0,87058.0,87031.0,0.06096786]
[1763949224262,0.74805948,87060.0,87031.0,0.06096786]
[1763949224263,0.69909045,87050.0,87046.0,0.01758]
[1763949224690,0.00047223,87047.0,87045.0,0.01432]
[1763949224857,0.69909045,87050.0,87045.0,0.01432]
[1763949225276,0.69909045,87050.0,87049.0,0.01758]
[1763949225512,0.01803283,87060.0,87049.0,0.01758]
[1763949225718,0.01880499,87069.0,87059.0,0.0319]
[1763949225923,0.01880499,87069.0,87068.0,0.01758]
[1763949226185,0.02152884,87069.0,87068.0,0.01758]
[1763949226405,0.03883924,87069.0,87068.0,0.01758]
[1763949226645,0.0173104,87069.0,87068.0,0.04653]
[1763949227021,0.69909045,87078.0,87068.0,0.04653]
[1763949227233,0.69909045,87078.0,87059.0,0.01432]
[1763949227234,0.00011791,87078.0,87077.0,0.0319]
[1763949227594,0.00011791,87078.0,87077.0,0.06085]
[1763949228050,0.01778029,87078.0,87077.0,0.06085]
[1763949228394,0.00011791,87078.0,87077.0,0.06085]
[1763949229404,0.01784013,87078.0,87077.0,0.06085]
[1763949229604,0.00011791,87078.0,87077.0,0.06085]
[1763949230673,0.00011791,87078.0,87077.0,0.0319]
[1763949230996,0.00156557,87078.0,87077.0,0.06085]
[1763949232329,0.00156557,87078.0,87070.0,0.01432]
[1763949232454,0.00011791,87078.0,87070.0,0.04327]
[1763949232654,0.00122746,87071.0,87070.0,0.04327]
[1763949233097,0.00122746,87071.0,87070.0,0.0319]
[1763949233500,0.00122746,87071.0,87070.0,0.06085]
[1763949234709,0.00011791,87078.0,87070.0,0.06085]
[1763949234710,0.00011791,87078.0,87070.0,0.07085]
[1763949234911,0.00011791,87078.0,87077.0,0.01758]
[1763949235301,0.00011791,87078.0,87077.0,0.04653]
[1763949236763,0.00011791,87078.0,87077.0,0.05653]
[1763949237321,0.00025171,87079.0,87077.0,0.05653]
[1763949237702,0.01802546,87089.0,87085.0,0.01]
[1763949237901,0.01841834,87089.0,87088.0,0.02758]
[1763949238244,0.01841834,87089.0,87088.0,0.05653]
[1763949238667,0.01873292,87089.0,87088.0,0.05653]
[1763949240098,0.01873292,87089.0,87088.0,0.05637533]
[1763949240824,0.01873292,87089.0,87088.0,0.04637533]
[1763949241440,0.01873292,87089.0,87088.0,0.05637533]
[1763949242056,0.01873292,87089.0,87088.0,0.04637533]
[1763949242459,0.01873292,87089.0,87088.0,0.05637533]
[1763949244017,0.01770453,87117.0,87088.0,0.04637533]
[1763949244196,0.69909045,87110.0,87105.0,0.01399]
[1763949244407,0.69909045,87110.0,87109.0,0.01832]
[1763949244609,0.00011782,87117.0,87109.0,0.01832]
[1763949245056,0.11811186,87115.0,87105.0,0.01399]
[1763949245184,0.22959212,87111.0,87090.0,0.01399]
[1763949245383,0.12959093,87115.0,87090.0,0.01399]
[1763949245384,0.69909045,87100.0,87091.0,0.02563]
[1763949246352,0.69909045,87100.0,87090.0,0.01399]
[1763949246778,0.11811186,87099.0,87076.0,0.02563]
[1763949247068,0.52542019,87086.0,87076.0,0.02563]
[1763949248158,0.11811186,87085.0,87070.0,0.01432]
[1763949248361,0.52542019,87086.0,87076.0,0.00039288]
[1763949249392,0.11811186,87085.0,87076.0,0.00039288]
[1763949249597,0.22966792,87083.0,87077.0,0.01399]
[1763949249780,0.22966792,87083.0,87076.0,0.00039288]
[1763949249981,0.22966644,87083.0,87076.0,0.00039288]
[1763949250219,0.22967857,87079.0,87076.0,0.00039288]
[1763949251052,0.11811186,87085.0,87076.0,0.00039288]
[1763949251453,0.34777275,87085.0,87076.0,0.00039288]
[1763949251677,0.11811186,87085.0,87076.0,0.00039288]
[1763949251891,0.34777329,87085.0,87076.0,0.00039288]
[1763949252059,0.22968164,87078.0,87076.0,0.00039288]
[1763949252466,0.69909045,87086.0,87076.0,0.00039288]
[1763949252669,0.71057335,87086.0,87076.0,0.00039288]
[1763949253189,0.11811186,87085.0,87076.0,0.00039288]
[1763949254667,0.11811186,87082.0,87076.0,0.00039288]
[1763949254860,0.2296777,87079.0,87076.0,0.00039288]
[1763949255090,0.11811186,87084.0,87076.0,0.00039288]
[1763949256273,0.69909045,87086.0,87076.0,0.00039288]
[1763949256491,0.11811186,87085.0,87076.0,0.00039288]
[1763949256717,0.01148329,87083.0,87076.0,0.00039288]
[1763949256879,0.24115514,87081.0,87076.0,0.00039288]
[1763949257077,0.01148356,87081.0,87076.0,0.00039288]
[1763949257305,0.22967122,87081.0,87076.0,0.00039288]
[1763949257507,0.01148342,87082.0,87076.0,0.00039288]
[1763949257508,0.22968177,87077.0,87076.0,0.00039288]
[1763949258498,0.02148101,87077.0,87076.0,0.00039288]
[1763949258703,0.25116278,87077.0,87076.0,0.00039288]
[1763949258902,2.30984454,87077.0,87076.0,0.00039288]
[1763949259113,2.29456653,87077.0,87076.0,0.00039288]
[1763949262501,2.02148101,87077.0,87076.0,0.00039288]
[1763949262640,0.02148101,87077.0,87076.0,0.00039288]
[1763949262841,0.25116278,87077.0,87076.0,0.00039288]
[1763949263046,2.25116278,87077.0,87076.0,0.00039288]
[1763949263913,2.25217885,87077.0,87076.0,0.00039288]
[1763949264178,2.36886481,87077.0,87076.0,0.00039288]
[1763949264395,0.01148751,87051.0,87045.0,0.01399]
[1763949264547,0.01148751,87051.0,87045.0,0.01408474]
[1763949264761,0.01148765,87050.0,87045.0,9.474e-05]
[1763949264966,0.24124066,87050.0,87045.0,9.474e-05]
[1763949265332,0.24124648,87048.0,87045.0,9.474e-05]
[1763949265455,0.22976337,87047.0,87045.0,9.474e-05]
[1763949265650,0.01148778,87049.0,87045.0,9.474e-05]
[1763949265855,0.22976093,87047.0,87045.0,9.474e-05]
[1763949266293,0.11811186,87051.0,87045.0,9.474e-05]
[1763949266871,0.47658205,87055.0,87045.0,9.474e-05]
[1763949267230,0.11811186,87052.0,87045.0,9.474e-05]
[1763949267352,0.22976292,87047.0,87045.0,9.474e-05]
[1763949267554,0.01148791,87048.0,87045.0,9.474e-05]
[1763949267749,0.24124829,87048.0,87045.0,9.474e-05]
[1763949268365,0.01148791,87048.0,87045.0,9.474e-05]
[1763949268782,0.22976093,87047.0,87045.0,9.474e-05]
[1763949269245,0.01148765,87050.0,87045.0,9.474e-05]
[1763949269461,0.01148778,87049.0,87045.0,9.474e-05]
[1763949269681,0.11811186,87052.0,87045.0,9.474e-05]
[1763949269912,2.0,87051.0,87045.0,9.474e-05]
[1763949270356,0.24123903,87051.0,87045.0,9.474e-05]
[1763949270610,0.11811186,87052.0,87045.0,9.474e-05]
[1763949272436,0.47658205,87070.0,87051.0,0.03231]
[1763949272636,0.11811186,87069.0,87054.0,0.01832]
[1763949273059,0.11811186,87069.0,87055.0,0.02563]
[1763949275518,0.11811186,87069.0,87051.0,0.01399]
[1763949275677,0.47658205,87061.0,87052.0,0.02661]
[1763949275886,0.47658205,87070.0,87052.0,0.02661]
[1763949276095,0.47658205,87080.0,87069.0,0.03185]
[1763949276294,0.47658205,87080.0,87076.0,0.0178]
[1763949276518,0.47658205,87086.0,87079.0,0.0178]
[1763949276717,0.47658205,87089.0,87079.0,0.0178]
[1763949276971,0.47658205,87089.0,87070.0,0.02661]
[1763949276972,0.11811186,87085.0,87070.0,0.02661]
[1763949277162,0.47658205,87080.0,87070.0,0.02661]
[1763949277492,0.47658205,87080.0,87070.0,9.474e-05]
[1763949278109,0.47658205,87080.0,87079.0,0.0178]
[1763949278308,2.0,87088.0,87079.0,0.04441]
[1763949278543,0.11811186,87085.0,87079.0,0.04441]
[1763949278761,0.11811186,87085.0,87080.0,0.01405]
[1763949278930,0.11811186,87085.0,87084.0,0.01405]
[1763949279778,0.11811186,87085.0,87080.0,0.01405]
[1763949281732,0.00025163,87097.0,87084.0,0.0178]
[1763949281942,0.00025163,87097.0,87093.0,0.0178]
[1763949282735,0.00025163,87097.0,87082.0,0.02661]
[1763949283258,0.47658205,87092.0,87080.0,0.01405]
[1763949283459,0.01148158,87096.0,87080.0,0.04066]
[1763949283678,0.47658205,87090.0,87080.0,0.04066]
[1763949283864,0.47658205,87090.0,87080.0,0.01405]
[1763949284062,0.47658205,87090.0,87081.0,0.02698]
[1763949284707,0.47658205,87090.0,87089.0,0.01761]
[1763949285018,0.00025163,87097.0,87080.0,0.01405]
[1763949285216,0.47658205,87090.0,87080.0,0.01405]
[1763949285401,0.11811186,87085.0,87070.0,9.474e-05]
[1763949285603,0.47658205,87083.0,87070.0,9.474e-05]
[1763949285817,0.01148395,87078.0,87070.0,9.474e-05]
[1763949286046,2.61811186,87071.0,87070.0,9.474e-05]
[1763949286257,2.23333317,87071.0,87070.0,9.474e-05]
[1763949286463,2.11811186,87071.0,87070.0,9.474e-05]
[1763949286730,2.13959042,87071.0,87070.0,9.474e-05]
[1763949286946,2.23847356,87071.0,87070.0,9.474e-05]
[1763949287161,0.0114887,87042.0,87015.0,0.01364]
[1763949287370,0.47658205,87034.0,87024.0,0.01375791]
[1763949288863,0.01625916,87035.0,87033.0,0.01761]
[1763949289079,0.11811186,87039.0,87033.0,0.01761]
[1763949289525,0.2454289,87040.0,87038.0,0.01761]
[1763949289737,0.47658205,87048.0,87039.0,0.01761]
[1763949289945,0.11811186,87042.0,87039.0,0.01761]
[1763949290166,0.47658205,87048.0,87047.0,0.03125]
[1763949290167,0.01661144,87048.0,87047.0,0.03125]
[1763949290619,0.59469391,87057.0,87047.0,0.03125]
[1763949290620,0.11811186,87056.0,87047.0,0.03125]
[1763949290821,0.01661308,87048.0,87047.0,0.05823]
[1763949291022,0.11811186,87056.0,87036.0,0.02698]
[1763949291223,0.47658205,87046.0,87036.0,0.02698]
[1763949291594,0.47658205,87046.0,87045.0,0.01761]
[1763949291814,0.01667497,87048.0,87045.0,0.01761]
[1763949292112,0.47658205,87055.0,87047.0,0.03125]
[1763949293324,0.49289498,87055.0,87047.0,0.03125]
[1763949294257,0.49289498,87055.0,87047.0,0.01364]
[1763949294490,0.01148738,87052.0,87030.0,0.01364]
[1763949294835,0.47658205,87040.0,87030.0,0.04062]
[1763949295039,0.47658205,87050.0,87031.0,0.02298031]
[1763949295240,0.47658205,87050.0,87039.0,0.01761]
[1763949295445,0.47658205,87050.0,87031.0,0.04996031]
[1763949295643,0.47658205,87050.0,87032.0,0.02698]
[1763949295842,0.47658205,87042.0,87032.0,0.02698]
[1763949297242,0.47658205,87042.0,87030.0,0.01364]
[1763949297896,0.47658205,87042.0,87030.0,0.04062]
[1763949298298,0.47658205,87042.0,87031.0,0.02698]
[1763949299291,0.11811186,87035.0,87030.0,0.01364]
[1763949299587,0.47658205,87042.0,87030.0,0.01364]
[1763949299783,0.47658205,87042.0,87034.0,0.01761]
[1763949300672,0.47658205,87042.0,87041.0,0.01761]
[1763949300848,0.5,87063.0,87041.0,0.04459]
[1763949301050,0.07293446,87064.0,87041.0,0.04459]
[1763949301051,0.47658205,87060.0,87048.0,0.01761]
[1763949301257,0.07293446,87064.0,87030.0,0.01364]
[1763949301258,0.01761,87058.0,87054.0,0.03125]
[1763949301480,0.01669751,87063.0,87059.0,0.01761]
[1763949301696,2.0,87075.0,87070.0,0.03125]
[1763949301875,0.47658205,87080.0,87070.0,0.03125]
[1763949302169,2.0,87079.0,87070.0,0.01364]
[1763949302723,0.01657938,87079.0,87078.0,0.01761]
[1763949302942,0.47658205,87090.0,87071.0,0.02698]
[1763949303168,0.59469391,87081.0,87071.0,0.02698]
[1763949303728,0.49294028,87081.0,87071.0,0.02698]
[1763949304549,0.49294028,87081.0,87080.0,0.01716]
[1763949304762,0.01635823,87081.0,87070.0,0.01364]
[1763949304970,0.11811186,87074.0,87070.0,0.01364]
[1763949305207,0.12959634,87074.0,87063.0,0.01416]
[1763949305405,0.47658205,87073.0,87063.0,0.01427791]
[1763949307140,0.01148488,87071.0,87063.0,0.01427791]
[1763949307337,0.01148501,87070.0,87063.0,0.01427791]
[1763949307543,0.24118532,87070.0,87063.0,0.00011791]
[1763949307943,2.0,87072.0,87063.0,0.00011791]
[1763949308340,0.01148488,87071.0,87063.0,0.00011791]
[1763949308586,0.01148501,87070.0,87063.0,0.00011791]